bitfinex-derivatives/quotes_BTCF0:USTF0_20241208
["timestamp","ask_amount","ask_price","bid_price","bid_amount"]
[1733644891015,0.045101,99711.0,99704.0,0.00061]
[1733644891016,0.045103,99705.0,99704.0,0.00061]
[1733644891516,0.16493476,99705.0,99704.0,0.00061]
[1733644892205,0.049103,99705.0,99704.0,0.00061]
[1733644893012,0.409903,99705.0,99704.0,0.00061]
[1733644897926,0.049103,99705.0,99704.0,0.00061]
[1733644898127,0.409903,99705.0,99704.0,0.00061]
[1733644900024,0.41999926,99705.0,99704.0,0.00061]
[1733644901319,0.045105,99702.0,99701.0,0.045105]
[1733644902526,0.045105,99702.0,99701.0,0.04823969]
[1733644903321,0.045105,99702.0,99701.0,0.0532552]
[1733644903628,0.046105,99702.0,99701.0,0.0532552]
[1733644904020,0.046105,99702.0,99701.0,0.0081502]
[1733644906321,0.406905,99702.0,99701.0,0.0081502]
[1733644906520,0.406905,99702.0,99700.0,0.1]
[1733644906729,0.406905,99702.0,99701.0,0.00815027]
[1733644907135,0.046105,99702.0,99701.0,0.00815027]
[1733644907528,0.405905,99702.0,99701.0,0.00815027]
[1733644907725,0.406905,99702.0,99701.0,0.00815027]
[1733644908134,0.405905,99702.0,99701.0,0.00815027]
[1733644908328,0.406905,99702.0,99701.0,0.00815027]
[1733644916651,0.406905,99702.0,99700.0,0.145105]
[1733644916652,0.3618,99702.0,99700.0,0.145105]
[1733644916952,0.406905,99702.0,99701.0,0.00815045]
[1733644917151,0.045105,99701.0,99700.0,0.145105]
[1733644917352,0.045105,99701.0,99700.0,0.14823976]
[1733644917561,0.045105,99701.0,99700.0,0.1595249]
[1733644919554,0.046105,99701.0,99700.0,0.1595249]
[1733644920759,0.046105,99701.0,99700.0,0.15952492]
[1733644922763,0.046105,99701.0,99700.0,0.145105]
[1733644922957,0.046105,99701.0,99700.0,0.15952492]
[1733644926273,0.046105,99701.0,99700.0,0.15952494]
[1733644926859,0.406905,99701.0,99700.0,0.15952494]
[1733644929862,0.406905,99701.0,99700.0,0.15952496]
[1733644931961,0.046105,99701.0,99700.0,0.15952496]
[1733644932275,0.406905,99701.0,99700.0,0.15952496]
[1733644933271,0.406905,99701.0,99700.0,0.15952485]
[1733644935567,0.046105,99701.0,99700.0,0.15952485]
[1733644935772,0.406905,99701.0,99700.0,0.15952485]
[1733644936867,0.406905,99701.0,99700.0,0.145105]
[1733644937065,0.406905,99701.0,99700.0,0.15952485]
[1733644937974,0.046105,99701.0,99700.0,0.15952485]
[1733644938170,0.406905,99701.0,99700.0,0.15952485]
[1733644939474,0.58728487,99701.0,99700.0,0.15952485]
[1733644939674,0.406905,99701.0,99700.0,0.15952485]
[1733644940278,0.5872819,99701.0,99700.0,0.15952485]
[1733644942580,0.046105,99701.0,99700.0,0.15952485]
[1733644942878,0.406905,99701.0,99700.0,0.15952485]
[1733644946177,0.406905,99701.0,99700.0,0.11441985]
[1733644946381,0.50294468,99701.0,99700.0,0.11441985]
[1733644950582,0.50294468,99701.0,99700.0,0.11442065]
[1733644950879,0.406905,99701.0,99700.0,0.1081508]
[1733644951085,0.50272801,99701.0,99700.0,0.1081508]
[1733644952380,0.50280281,99701.0,99700.0,0.1081508]
[1733644954091,0.86360281,99701.0,99700.0,0.1081508]
[1733644957183,0.86360281,99701.0,99700.0,0.1]
[1733644957386,0.86360281,99701.0,99700.0,0.10815096]
[1733644957783,0.86311176,99701.0,99700.0,0.10815096]
[1733644960884,0.86311176,99701.0,99700.0,0.108151]
[1733644962382,0.86311176,99701.0,99700.0,0.103135]
[1733644963785,0.86611176,99701.0,99700.0,0.103135]
[1733644964594,0.86811176,99701.0,99700.0,0.103135]
[1733644967600,0.86811176,99701.0,99700.0,0.10313505]
[1733644970798,0.772705,99701.0,99700.0,0.1081511]
[1733644971100,0.772705,99701.0,99700.0,0.10313505]
[1733644971300,0.86763699,99701.0,99700.0,0.00313506]
[1733644971598,0.04511,99691.0,99690.0,0.01]
[1733644971899,0.40591,99691.0,99690.0,0.00501617]
[1733644974688,0.58611249,99691.0,99690.0,0.00501639]
[1733644974888,0.40591,99691.0,99690.0,0.00501639]
[1733644977097,0.5861272,99691.0,99690.0,0.00501639]
[1733644977598,0.59608482,99691.0,99690.0,0.00501639]
[1733644978003,0.41586762,99691.0,99683.0,0.0325]
[1733644978300,0.045113,99684.0,99683.0,0.0325]
[1733644978607,0.045113,99684.0,99683.0,0.04378723]
[1733644981004,0.045113,99684.0,99683.0,0.0325]
[1733644981306,0.045113,99684.0,99683.0,0.04378691]
[1733644983398,0.045113,99684.0,99683.0,0.04692221]
[1733644984007,0.045113,99684.0,99683.0,0.0325]
[1733644984303,0.045113,99684.0,99683.0,0.04692216]
[1733644987296,0.045113,99684.0,99683.0,0.01442216]
[1733644987609,0.405913,99684.0,99683.0,0.01442217]
[1733644992204,0.42566334,99684.0,99683.0,0.01442217]
[1733644992902,0.60587695,99684.0,99683.0,0.01442217]
[1733644994415,0.60587695,99684.0,99683.0,0.01442272]
[1733644994618,0.24507695,99684.0,99683.0,0.01442272]
[1733644994817,0.60587695,99684.0,99683.0,0.01442272]
[1733644995210,0.24507695,99684.0,99683.0,0.01442272]
[1733644995412,0.60587695,99684.0,99683.0,0.01442272]
[1733644998025,0.42566334,99684.0,99683.0,0.01442272]
[1733644998223,0.60587695,99684.0,99683.0,0.01442261]
[1733644998931,0.60600175,99684.0,99683.0,0.01442261]
[1733644999231,0.42566334,99684.0,99683.0,0.01442261]
[1733645004927,0.045114,99681.0,99680.0,0.00011285]
[1733645005237,0.045114,99681.0,99680.0,0.01453578]
[1733645006034,0.046114,99681.0,99680.0,0.01453578]
[1733645006837,0.406914,99681.0,99680.0,0.01453578]
[1733645011237,0.41715941,99681.0,99680.0,0.01453578]
[1733645011646,0.41715941,99681.0,99680.0,0.00011285]
[1733645011943,0.41715941,99681.0,99680.0,0.01453598]
[1733645015245,0.41715941,99681.0,99680.0,0.01453606]
[1733645018531,0.41715941,99681.0,99680.0,0.00011285]
[1733645018737,0.41715941,99681.0,99680.0,0.0095193]
[1733645019039,0.41715941,99681.0,99680.0,0.0145358]
[1733645022545,0.51338478,99681.0,99680.0,0.00826495]
[1733645022948,0.51338478,99681.0,99665.0,0.18033065]
[1733645023150,0.58628549,99671.0,99665.0,0.18033065]
[1733645023350,0.415919,99671.0,99666.0,0.00627155]
[1733645023543,0.415919,99671.0,99667.0,0.00627155]
[1733645023743,0.415919,99671.0,99663.0,0.18183551]
[1733645023744,0.415919,99671.0,99668.0,0.00627155]
[1733645023944,0.045119,99670.0,99669.0,0.00627155]
[1733645024553,0.22548549,99670.0,99669.0,0.00627155]
[1733645024846,0.045119,99670.0,99669.0,0.00627155]
[1733645026251,0.045122,99664.0,99663.0,0.00150486]
[1733645026445,0.045122,99664.0,99663.0,0.00777655]
[1733645027354,0.045122,99664.0,99663.0,0.05289855]
[1733645028053,0.046122,99664.0,99663.0,0.05289855]
[1733645030353,0.001,99664.0,99663.0,0.05289855]
[1733645030549,0.001,99664.0,99663.0,0.11559855]
[1733645030750,0.001,99664.0,99663.0,0.35604724]
[1733645030949,0.001,99664.0,99663.0,0.11559855]
[1733645032152,0.001,99664.0,99663.0,0.35601737]
[1733645032352,0.001,99664.0,99663.0,0.11559855]
[1733645032656,0.001,99664.0,99663.0,0.11559783]
[1733645033159,0.001,99664.0,99663.0,0.12061461]
[1733645035162,0.001,99664.0,99663.0,0.12375011]
[1733645035657,0.001,99664.0,99663.0,0.12409843]
[1733645035865,0.001,99664.0,99663.0,0.36452637]
[1733645036056,0.001,99664.0,99663.0,0.35916125]
[1733645036365,0.001,99664.0,99663.0,0.36417803]
[1733645036761,0.001,99664.0,99663.0,0.3739993]
[1733645037265,0.001,99664.0,99663.0,0.37399932]
[1733645039658,0.001,99664.0,99663.0,0.35957607]
[1733645039964,0.001,99664.0,99663.0,0.37399932]
[1733645040463,0.001,99664.0,99663.0,0.37434768]
[1733645040860,0.001,99664.0,99663.0,0.37399932]
[1733645041061,0.001,99664.0,99663.0,0.37249446]
[1733645041366,0.001,99664.0,99663.0,0.37249444]
[1733645041765,0.001,99664.0,99663.0,0.36267317]
[1733645043072,0.001,99664.0,99663.0,0.12224523]
[1733645043854,0.001,99664.0,99663.0,0.05954523]
[1733645045067,0.001,99664.0,99663.0,0.23992823]
[1733645045561,0.046122,99664.0,99663.0,0.23992823]
[1733645045761,0.046122,99664.0,99663.0,0.05954523]
[1733645045976,0.046122,99664.0,99663.0,0.23993497]
[1733645046268,0.046122,99664.0,99663.0,0.23993565]
[1733645046562,0.046122,99664.0,99663.0,0.05954523]
[1733645048569,0.046122,99664.0,99663.0,0.05954679]
[1733645050361,0.19629636,99664.0,99663.0,0.01442479]
[1733645051169,0.046122,99664.0,99663.0,0.01442479]
[1733645052271,0.046122,99664.0,99660.0,0.045123]
[1733645052272,0.001,99664.0,99660.0,0.045123]
[1733645052471,0.045123,99661.0,99660.0,0.045123]
[1733645052673,0.045123,99661.0,99660.0,0.05954782]
[1733645053872,0.046123,99661.0,99660.0,0.05954782]
[1733645055274,0.047123,99661.0,99660.0,0.05954782]
[1733645055874,0.047123,99661.0,99660.0,0.23994285]
[1733645056075,0.047123,99661.0,99660.0,0.05954782]
[1733645056273,0.047123,99661.0,99660.0,0.23994285]
[1733645056479,0.047123,99661.0,99660.0,0.05954782]
[1733645058969,0.047123,99661.0,99660.0,0.045123]
[1733645059171,0.047123,99661.0,99660.0,0.04825886]
[1733645059382,0.047123,99661.0,99660.0,0.05954795]
[1733645061982,0.046123,99661.0,99660.0,0.05954795]
[1733645062187,0.046123,99661.0,99660.0,0.045123]
[1733645062378,0.045124,99660.0,99659.0,0.18039503]
[1733645062576,0.045124,99660.0,99659.0,0.19481985]
[1733645062872,0.045124,99660.0,99659.0,0.01442482]
[1733645065680,0.045124,99660.0,99659.0,0.01442518]
[1733645068285,0.37083693,99662.0,99657.0,0.18039503]
[1733645068286,0.045125,99658.0,99657.0,0.18039503]
[1733645068491,0.045125,99658.0,99657.0,0.01442537]
[1733645068788,0.22549149,99658.0,99657.0,0.01442537]
[1733645068980,0.25639149,99658.0,99657.0,0.01442537]
[1733645069180,0.25639149,99658.0,99648.0,0.01]
[1733645069181,0.045129,99649.0,99648.0,0.01]
[1733645069385,0.04513,99646.0,99645.0,0.18077544]
[1733645069779,0.04513,99646.0,99645.0,0.18042726]
[1733645070076,0.04513,99646.0,99644.0,0.22555826]
[1733645070077,0.3608,99646.0,99644.0,0.22555826]
[1733645070283,0.04513,99645.0,99644.0,0.22555826]
[1733645070886,0.04513,99645.0,99644.0,0.045131]
[1733645072280,0.04613,99645.0,99644.0,0.045131]
[1733645076385,0.04613,99645.0,99644.0,0.05140371]
[1733645078496,0.04613,99645.0,99644.0,0.05642188]
[1733645079889,0.04613,99645.0,99644.0,0.045131]
[1733645080086,0.04613,99645.0,99644.0,0.05642188]
[1733645080389,0.04613,99645.0,99644.0,0.05955823]
[1733645082592,0.40693,99645.0,99644.0,0.05955823]
[1733645083097,0.40693,99645.0,99644.0,0.045131]
[1733645083294,0.40693,99645.0,99644.0,0.05642188]
[1733645083594,0.40693,99645.0,99644.0,0.05955823]
[1733645084592,0.04613,99645.0,99644.0,0.05955823]
[1733645090095,0.04613,99645.0,99644.0,0.23998516]
[1733645091800,0.40693,99645.0,99644.0,0.23998516]
[1733645091999,0.40693,99645.0,99644.0,0.0595579]
[1733645093493,0.04613,99645.0,99644.0,0.0595579]
[1733645093793,0.40693,99645.0,99644.0,0.0595579]
[1733645094098,0.40693,99645.0,99644.0,0.23995837]
[1733645095092,0.40693,99645.0,99644.0,0.0595579]
[1733645097205,0.40693,99645.0,99644.0,0.05955809]
[1733645097407,0.40693,99645.0,99644.0,0.01442709]
[1733645097599,0.40693,99645.0,99644.0,0.00815444]
[1733645098709,0.58706722,99645.0,99644.0,0.00815444]
[1733645099100,0.40693,99645.0,99644.0,0.00815444]
[1733645099500,0.40693,99645.0,99644.0,0.00313632]
[1733645100908,0.40593,99645.0,99644.0,0.00313632]
[1733645101613,0.40593,99645.0,99635.0,0.01]
[1733645101614,0.045135,99636.0,99635.0,0.01]
[1733645101804,0.045137,99631.0,99630.0,0.22566701]
[1733645102106,0.045137,99631.0,99630.0,0.24009633]
[1733645102305,0.045137,99631.0,99630.0,0.22566701]
[1733645102502,0.045137,99631.0,99630.0,0.24009633]
[1733645102814,0.045137,99631.0,99630.0,0.05956632]
[1733645103110,0.045137,99631.0,99630.0,0.05956633]
[1733645103817,0.045137,99631.0,99630.0,0.01442933]
[1733645104399,0.046137,99631.0,99630.0,0.01442933]
[1733645104603,0.047137,99631.0,99630.0,0.01442933]
[1733645105108,0.05694881,99631.0,99630.0,0.01442933]
[1733645108905,0.05694881,99631.0,99624.0,0.22567001]
[1733645108906,0.045139,99626.0,99625.0,0.18053001]
[1733645109108,0.405939,99626.0,99625.0,0.19495931]
[1733645109313,0.405939,99626.0,99625.0,0.0144293]
[1733645109997,0.406939,99626.0,99625.0,0.0144293]
[1733645110207,0.406939,99626.0,99624.0,0.22567001]
[1733645110402,0.406939,99626.0,99625.0,0.01442948]
[1733645111101,0.407939,99626.0,99625.0,0.01442948]
[1733645111307,0.407939,99626.0,99625.0,0.19495949]
[1733645111507,0.407939,99626.0,99625.0,0.01442948]
[1733645112711,0.047139,99626.0,99625.0,0.19495949]
[1733645112908,0.407939,99626.0,99625.0,0.19495949]
[1733645113305,0.407939,99626.0,99625.0,0.19495929]
[1733645113701,0.407939,99626.0,99625.0,0.01442928]
[1733645114407,0.407939,99626.0,99625.0,0.19466224]
[1733645114612,0.407939,99626.0,99625.0,0.01442928]
[1733645122914,0.406939,99626.0,99625.0,0.01442928]
[1733645123226,0.406939,99626.0,99625.0,0.19466224]
[1733645123525,0.405939,99626.0,99625.0,0.19466224]
[1733645123727,0.405939,99626.0,99625.0,0.19466267]
[1733645123728,0.406939,99626.0,99625.0,0.19466267]
[1733645124223,0.406939,99626.0,99625.0,0.01477798]
[1733645124521,0.406939,99626.0,99625.0,0.01442971]
[1733645125020,0.406939,99626.0,99625.0,0.19483673]
[1733645125218,0.406939,99626.0,99625.0,0.01477798]
[1733645125414,0.406939,99626.0,99625.0,0.19487549]
[1733645126120,0.406939,99626.0,99625.0,0.01442971]
[1733645127421,0.046139,99626.0,99625.0,0.01442971]
[1733645127617,0.406939,99626.0,99625.0,0.01442971]
[1733645130833,0.55684755,99626.0,99625.0,0.18562492]
[1733645131122,0.406939,99626.0,99625.0,0.01443011]
[1733645131915,0.439239,99626.0,99625.0,0.01443011]
[1733645132120,0.438239,99626.0,99625.0,0.00815615]
[1733645132825,0.438239,99626.0,99615.0,0.01]
[1733645132826,0.045144,99616.0,99615.0,0.01]
[1733645133025,0.54070135,99616.0,99604.0,0.22575489]
[1733645133226,0.54070135,99616.0,99603.0,0.18211179]
[1733645133227,0.3608,99605.0,99603.0,0.18211179]
[1733645133416,0.045149,99604.0,99603.0,0.22719285]
[1733645133624,0.045149,99604.0,99603.0,0.05293012]
[1733645135328,0.046149,99604.0,99603.0,0.05293012]
[1733645136422,0.406949,99604.0,99603.0,0.05293012]
[1733645137331,0.046149,99604.0,99603.0,0.05293012]
[1733645137524,0.046149,99604.0,99603.0,0.05293014]
[1733645137720,0.406949,99604.0,99603.0,0.05293014]
[1733645139432,0.406949,99604.0,99603.0,0.00778114]
[1733645140029,0.406949,99604.0,99603.0,0.0015059]
[1733645142919,0.406949,99604.0,99603.0,0.00652611]
[1733645144926,0.406949,99604.0,99603.0,0.0096638]
[1733645149534,0.406949,99604.0,99603.0,0.0015059]
[1733645149741,0.046149,99604.0,99603.0,0.0015059]
[1733645149939,0.406949,99604.0,99603.0,0.0096639]
[1733645151529,0.406949,99604.0,99603.0,0.0015059]
[1733645151730,0.406949,99604.0,99603.0,0.0096639]
[1733645154535,0.407949,99604.0,99603.0,0.0096639]
[1733645155044,0.408949,99604.0,99603.0,0.0096639]
[1733645157244,0.408949,99604.0,99603.0,0.01593929]
[1733645161238,0.408949,99604.0,99603.0,0.01782191]
[1733645161432,0.408949,99604.0,99603.0,0.0209596]
[1733645161643,0.408949,99604.0,99603.0,0.02095965]
[1733645163546,0.408949,99604.0,99603.0,0.01593934]
[1733645164545,0.408949,99604.0,99603.0,0.01593975]
[1733645168257,0.408949,99604.0,99603.0,0.01593983]
[1733645175268,0.408949,99604.0,99603.0,0.01443393]
[1733645175561,0.408949,99604.0,99603.0,0.00815831]
[1733645176457,0.408949,99604.0,99603.0,0.01443395]
[1733645177458,0.769749,99604.0,99603.0,0.01443395]
[1733645179161,0.769749,99604.0,99603.0,0.00815831]
[1733645179371,0.04515,99601.0,99600.0,0.1]
[1733645180255,0.04515,99601.0,99600.0,0.07632598]
[1733645180458,0.04615,99601.0,99600.0,0.07632598]
[1733645180862,0.34615,99601.0,99600.0,0.07632598]
[1733645181067,0.04915,99601.0,99600.0,0.07632598]
[1733645181266,0.34915,99601.0,99600.0,0.05624021]
[1733645181564,0.35717002,99601.0,99600.0,0.05624021]
[1733645181757,0.35717002,99601.0,99592.0,0.01]
[1733645181758,0.045154,99593.0,99592.0,0.01]
[1733645181968,0.045154,99593.0,99587.0,6.47e-05]
[1733645181969,0.045156,99588.0,99587.0,6.47e-05]
[1733645182262,0.045156,99588.0,99582.0,0.18049116]
[1733645182464,0.055156,99588.0,99579.0,0.18049116]
[1733645182667,0.055156,99588.0,99577.0,0.18049116]
[1733645182668,0.045161,99578.0,99577.0,0.18049116]
[1733645182866,0.3608,99580.0,99573.0,0.18049116]
[1733645182867,0.045163,99574.0,99573.0,0.18049116]
[1733645183056,0.3608,99580.0,99572.0,0.18049116]
[1733645183057,0.045163,99573.0,99572.0,0.18049116]
[1733645183364,0.3608,99580.0,99571.0,0.18049116]
[1733645183365,0.01,99579.0,99571.0,0.18049116]
[1733645183667,0.405964,99572.0,99571.0,0.18039272]
[1733645183861,0.405964,99572.0,99571.0,0.18074196]
[1733645184065,0.405964,99572.0,99571.0,0.00034924]
[1733645184258,0.405964,99572.0,99569.0,0.18039272]
[1733645184462,0.415964,99572.0,99568.0,0.04551424]
[1733645184657,0.415964,99572.0,99569.0,0.03263541]
[1733645184866,0.3718,99572.0,99568.0,0.045165]
[1733645185170,0.045164,99571.0,99568.0,0.045165]
[1733645185958,0.3728,99572.0,99564.0,0.22555972]
[1733645186264,0.045164,99571.0,99570.0,0.00034906]
[1733645186464,0.045164,99571.0,99565.0,0.045167]
[1733645186770,0.045166,99568.0,99566.0,0.04519442]
[1733645186962,0.045166,99568.0,99565.0,0.045167]
[1733645187273,0.045166,99568.0,99566.0,0.04523038]
[1733645187457,0.045166,99568.0,99567.0,0.04523038]
[1733645187963,0.045166,99567.0,99566.0,0.045166]
[1733645188268,0.045166,99567.0,99566.0,0.09039757]
[1733645188461,0.045166,99567.0,99566.0,0.03263716]
[1733645188656,0.001,99568.0,99563.0,0.00184]
[1733645188657,0.045167,99564.0,99563.0,0.00184]
[1733645188865,0.405967,99564.0,99563.0,0.03447746]
[1733645189266,0.405967,99564.0,99563.0,0.21465712]
[1733645189462,0.405967,99564.0,99563.0,0.00686125]
[1733645190367,0.405967,99564.0,99563.0,0.01313786]
[1733645190568,0.405967,99564.0,99563.0,0.05834082]
[1733645190780,0.405967,99564.0,99563.0,0.01313786]
[1733645191160,0.405967,99564.0,99563.0,0.0583447]
[1733645191478,0.405967,99564.0,99563.0,0.01627595]
[1733645191775,0.405967,99564.0,99563.0,0.0614829]
[1733645192163,0.3608,99564.0,99563.0,0.06144395]
[1733645192364,0.01,99567.0,99566.0,0.045166]
[1733645192569,0.005,99569.0,99566.0,0.01443595]
[1733645192763,0.005,99569.0,99568.0,0.045165]
[1733645193068,0.3608,99573.0,99572.0,0.045164]
[1733645193271,0.3608,99573.0,99572.0,0.05959995]
[1733645195058,0.3638,99573.0,99572.0,0.05959995]
[1733645195474,0.37363431,99573.0,99572.0,0.05959995]
[1733645206680,0.01283431,99573.0,99572.0,0.05959995]
[1733645207880,0.01283431,99573.0,99572.0,0.05994878]
[1733645208074,0.01283431,99573.0,99572.0,0.05959995]
[1733645208574,0.01283431,99573.0,99572.0,0.24012814]
[1733645208775,0.01283431,99573.0,99572.0,0.2397788]
[1733645208978,0.01283431,99573.0,99572.0,0.05959914]
[1733645212385,0.01283431,99573.0,99572.0,0.05994885]
[1733645212877,0.01283431,99573.0,99572.0,0.05959914]
[1733645214374,0.01283431,99573.0,99572.0,0.0599488]
[1733645214894,0.01283431,99573.0,99572.0,0.05959914]
[1733645215383,0.01283431,99573.0,99572.0,0.05994919]
[1733645215786,0.01283431,99573.0,99572.0,0.05959914]
[1733645217684,0.01283431,99573.0,99572.0,0.30002708]
[1733645217878,0.01283431,99573.0,99572.0,0.30037688]
[1733645218391,0.01283431,99573.0,99572.0,0.30002708]
[1733645218578,0.01283431,99573.0,99572.0,0.28559194]
[1733645218779,0.01283431,99573.0,99572.0,0.30002703]
[1733645220089,0.01283431,99573.0,99572.0,0.3004924]
[1733645220588,0.01283431,99573.0,99572.0,0.05959909]
[1733645221289,0.01283431,99573.0,99572.0,0.0595996]
[1733645221786,0.01283431,99573.0,99572.0,0.05959963]
[1733645221992,0.01283431,99573.0,99572.0,0.045164]
[1733645222287,0.01283431,99573.0,99572.0,0.05959963]
[1733645222494,0.05799731,99573.0,99572.0,0.05959963]
[1733645222792,0.05799731,99573.0,99572.0,0.30061141]
[1733645223186,0.05799731,99573.0,99572.0,0.30061087]
[1733645224289,0.05799731,99573.0,99572.0,0.25544687]
[1733645224891,0.05799731,99573.0,99572.0,0.01443509]
[1733645226297,0.05799731,99573.0,99572.0,0.19516935]
[1733645226799,0.05799731,99573.0,99572.0,0.01443509]
[1733645227189,0.05799731,99573.0,99572.0,0.19551638]
[1733645227383,0.05799731,99573.0,99572.0,0.01478485]
[1733645227587,0.05799731,99573.0,99572.0,0.19515088]
[1733645227784,0.05799731,99573.0,99572.0,0.01478484]
[1733645228196,0.05799731,99573.0,99572.0,0.19515088]
[1733645228386,0.41879731,99573.0,99572.0,0.01443509]
[1733645228900,0.41879731,99573.0,99572.0,0.01478484]
[1733645229090,0.41879731,99573.0,99572.0,0.01443509]
[1733645229291,0.41879731,99573.0,99572.0,0.19548622]
[1733645229799,0.41879731,99573.0,99572.0,0.01478483]
[1733645230596,0.41879731,99573.0,99572.0,0.01443509]
[1733645231000,0.045164,99571.0,99570.0,0.1807009]
[1733645231993,0.41931732,99573.0,99569.0,0.1807009]
[1733645232189,0.001,99571.0,99570.0,0.01443867]
[1733645232392,0.001,99571.0,99570.0,0.00816099]
[1733645232600,0.001,99571.0,99570.0,0.18886189]
[1733645232796,0.001,99571.0,99570.0,0.00816099]
[1733645233100,0.046164,99571.0,99570.0,0.00816099]
[1733645238302,0.046164,99571.0,99570.0,0.00313884]
[1733645239097,0.046164,99571.0,99570.0,0.00816114]
[1733645239995,0.046164,99571.0,99570.0,0.18886204]
[1733645240297,0.046164,99571.0,99570.0,0.00816114]
[1733645242304,0.046164,99571.0,99570.0,0.18876653]
[1733645244204,0.046164,99571.0,99570.0,0.00816114]
[1733645244606,0.046164,99571.0,99570.0,0.18877769]
[1733645245407,0.046164,99571.0,99570.0,0.00816114]
[1733645246108,0.046164,99571.0,99570.0,0.18878251]
[1733645246815,0.046164,99571.0,99570.0,0.00816114]
[1733645248106,0.406964,99571.0,99570.0,0.00816114]
[1733645249414,0.045165,99568.0,99567.0,0.28617778]
[1733645249611,0.045165,99568.0,99567.0,0.30061589]
[1733645250211,0.045165,99568.0,99567.0,0.25544989]
[1733645250409,0.045165,99568.0,99567.0,0.30061589]
[1733645250714,0.3608,99571.0,99570.0,0.045164]
[1733645250920,0.3608,99571.0,99570.0,0.05960169]
[1733645251909,0.3618,99571.0,99570.0,0.05960169]
[1733645253815,0.406964,99571.0,99570.0,0.01443769]
[1733645254022,0.406964,99571.0,99570.0,0.00816067]
[1733645255210,0.406964,99571.0,99570.0,0.00313872]
[1733645255812,0.406964,99571.0,99570.0,0.00816108]
[1733645256127,0.406964,99571.0,99570.0,0.00313872]
[1733645256318,0.406964,99571.0,99570.0,0.00816099]
[1733645263524,0.406964,99571.0,99570.0,0.00816109]
[1733645264830,0.046164,99571.0,99570.0,0.00816109]
[1733645265022,0.406964,99571.0,99570.0,0.00816109]
[1733645268124,0.767764,99571.0,99570.0,0.00816109]
[1733645268326,0.767764,99571.0,99570.0,0.00313888]
[1733645269534,0.769764,99571.0,99570.0,0.00313888]
[1733645270335,0.769764,99571.0,99559.0,0.01]
[1733645270336,0.045169,99560.0,99559.0,0.01]
[1733645270635,0.405969,99560.0,99559.0,0.00502261]
[1733645270827,0.405969,99560.0,99551.0,0.01]
[1733645270828,0.045173,99552.0,99551.0,0.01]
[1733645271031,0.045174,99550.0,99549.0,0.0305]
[1733645271228,0.045174,99550.0,99549.0,0.03552311]
[1733645272039,0.045174,99550.0,99549.0,0.00502311]
[1733645273236,0.045175,99547.0,99546.0,0.00150669]
[1733645273538,0.045175,99547.0,99546.0,0.00652995]
[1733645274039,0.405975,99547.0,99546.0,0.00652995]
[1733645274235,0.406975,99547.0,99546.0,0.00652995]
[1733645277239,0.406975,99547.0,99546.0,0.00150669]
[1733645282339,0.406975,99547.0,99546.0,0.00966948]
[1733645283543,0.406975,99547.0,99546.0,0.00150669]
[1733645283744,0.406975,99547.0,99546.0,0.00966948]
[1733645284949,0.406975,99547.0,99546.0,0.00150669]
[1733645285140,0.406975,99547.0,99546.0,0.00966944]
[1733645285750,0.046175,99547.0,99546.0,0.00966944]
[1733645286045,0.406975,99547.0,99546.0,0.00966944]
[1733645286736,0.408975,99547.0,99546.0,0.00966944]
[1733645286942,0.408975,99547.0,99546.0,0.00150669]
[1733645287141,0.408975,99547.0,99546.0,0.00966948]
[1733645287339,0.409975,99547.0,99546.0,0.00464622]
[1733645288745,0.408975,99547.0,99546.0,0.00966952]
[1733645289056,0.409975,99547.0,99546.0,0.00464622]
[1733645292856,0.045178,99541.0,99534.0,0.01]
[1733645293057,0.045178,99541.0,99522.0,0.045186]
[1733645293058,0.045183,99530.0,99529.0,0.01]
[1733645293251,0.045183,99530.0,99529.0,0.00502404]
[1733645294347,0.045186,99523.0,99522.0,0.045186]
[1733645294651,0.405986,99523.0,99522.0,0.05021008]
[1733645295050,0.405986,99523.0,99522.0,0.05649019]
[1733645295247,0.405986,99523.0,99522.0,0.05649018]
[1733645295553,0.405986,99523.0,99522.0,0.05649017]
[1733645296147,0.405986,99523.0,99522.0,0.05021008]
[1733645296463,0.405986,99523.0,99522.0,0.01130416]
[1733645296650,0.406986,99523.0,99522.0,0.01130416]
[1733645297262,0.406986,99523.0,99522.0,0.01130425]
[1733645297560,0.406986,99523.0,99522.0,0.01130431]
[1733645297762,0.406986,99523.0,99522.0,0.01130439]
[1733645299262,0.41695827,99523.0,99522.0,0.01130439]
[1733645300967,0.41695827,99523.0,99522.0,0.01130436]
[1733645301262,0.41695827,99523.0,99522.0,0.00502416]
[1733645301461,0.41695827,99523.0,99522.0,0.01130436]
[1733645303350,0.05615827,99523.0,99522.0,0.01130436]
[1733645303555,0.41695827,99523.0,99522.0,0.01130436]
[1733645304250,0.37177227,99523.0,99521.0,0.045186]
[1733645304453,0.05615827,99523.0,99522.0,0.01130436]
[1733645304766,0.41695827,99523.0,99522.0,0.01444446]
[1733645305470,0.41595827,99523.0,99522.0,0.01444446]
[1733645305669,0.41695827,99523.0,99522.0,0.01444446]
[1733645306056,0.41595827,99523.0,99522.0,0.01444446]
[1733645306263,0.41695827,99523.0,99522.0,0.01444446]
[1733645307166,0.41695827,99523.0,99522.0,0.00816426]
[1733645307961,0.045188,99519.0,99518.0,0.0312]
[1733645308270,0.045188,99519.0,99518.0,0.04564474]
[1733645309160,0.045188,99519.0,99518.0,0.04564485]
[1733645309556,0.045188,99519.0,99518.0,0.00816442]
[1733645311472,0.045191,99511.0,99510.0,0.01150729]
[1733645311660,0.045191,99511.0,99510.0,0.06114453]
[1733645313076,0.045191,99511.0,99510.0,0.04614453]
[1733645314865,0.045191,99511.0,99510.0,0.045192]
[1733645317075,0.05504392,99511.0,99510.0,0.045192]
[1733645320866,0.05504392,99511.0,99510.0,0.05147282]
[1733645321678,0.05504392,99511.0,99510.0,0.045192]
[1733645321868,0.05504392,99511.0,99510.0,0.05147282]
[1733645322869,0.05504392,99511.0,99510.0,0.05649751]
[1733645324581,0.05504392,99511.0,99510.0,0.05649756]
[1733645324978,0.05504392,99511.0,99510.0,0.05963799]
[1733645325582,0.05504392,99511.0,99510.0,0.045192]
[1733645325886,0.41584392,99511.0,99510.0,0.05963799]
[1733645326580,0.41584392,99511.0,99510.0,0.30049181]
[1733645326786,0.41584392,99511.0,99510.0,0.05963799]
[1733645328786,0.41584392,99511.0,99510.0,0.00816512]
[1733645328991,0.41584392,99511.0,99510.0,0.01444605]